bitfinex/quotes_ETHUSD_20251107
["timestamp","ask_amount","ask_price","bid_price","bid_amount"]
[1762485259416,0.188,3357.7,3356.8,0.9844]
[1762485259634,2.97873054,3357.2,3356.9,0.889004]
[1762485259841,0.736,3357.6,3356.9,0.889004]
[1762485259842,2.97885016,3357.0,3356.9,0.889004]
[1762485260924,2.97885016,3357.0,3356.9,0.4835]
[1762485261748,2.97885016,3357.0,3356.9,0.405504]
[1762485261943,2.9787866,3357.1,3356.9,0.405504]
[1762485262961,0.188,3357.7,3357.0,0.405504]
[1762485263155,2.97846035,3357.5,3357.2,0.4835]
[1762485263318,2.97851199,3357.4,3357.2,0.4835]
[1762485264034,2.97872942,3357.2,3356.8,0.001]
[1762485264247,2.97872942,3357.2,3357.0,0.405504]
[1762485264548,2.97875186,3357.2,3357.1,0.4835]
[1762485264755,2.97885016,3357.0,3356.9,3.79]
[1762485264971,2.9789389,3356.9,3356.8,0.001]
[1762485265256,4.6891509,3356.9,3356.8,0.001]
[1762485265554,4.9737509,3356.9,3356.8,0.001]
[1762485267750,4.6891509,3356.9,3356.8,0.001]
[1762485269395,2.9789389,3356.9,3356.8,0.4845]
[1762485269679,3.7129389,3356.9,3356.8,0.4845]
[1762485269975,2.9789389,3356.9,3356.8,0.4845]
[1762485270382,0.188,3357.7,3356.8,0.9844]
[1762485270544,2.97887162,3357.0,3356.9,0.4835]
[1762485270741,2.97887162,3357.0,3356.9,0.9834]
[1762485270943,2.97887162,3357.0,3356.9,1.1322]
[1762485272377,2.97887162,3357.0,3356.9,0.1488]
[1762485272577,2.97887162,3357.0,3356.9,0.6323]
[1762485272782,2.98087162,3357.0,3356.9,1.1322]
[1762485273295,0.002,3357.0,3356.9,1.1322]
[1762485273467,0.002,3357.0,3356.9,2.030224]
[1762485274080,0.002,3357.0,3356.9,5.0091629]
[1762485274963,0.002,3357.0,3356.9,5.03895228]
[1762485275364,0.002,3357.0,3356.9,5.0091629]
[1762485275899,0.002,3357.0,3356.9,2.030224]
[1762485276568,0.002,3357.0,3356.9,1.537704]
[1762485277278,0.002,3357.0,3356.9,4.5166429]
[1762485277493,0.002,3357.0,3356.9,2.269704]
[1762485277666,0.002,3357.0,3356.9,5.2486429]
[1762485277986,0.002,3357.0,3356.9,2.269704]
[1762485278300,0.002,3357.0,3356.9,6.1977051]
[1762485278504,0.002,3357.0,3356.9,3.2187662]
[1762485278999,0.002,3357.0,3356.9,7.0087662]
[1762485280771,0.002,3357.4,3357.3,3.38408798]
[1762485281003,0.002,3357.4,3357.3,4.06538798]
[1762485281203,0.002,3357.4,3357.3,5.26986292]
[1762485281805,0.002,3357.4,3357.3,5.99986292]
[1762485283612,0.002,3357.4,3357.3,7.25957492]
[1762485283775,0.002,3357.7,3357.6,3.38382184]
[1762485283982,0.002,3357.7,3357.6,5.16981701]
[1762485284299,0.002,3357.7,3357.6,7.32802613]
[1762485284614,0.002,3357.7,3357.6,7.29824296]
[1762485285713,2.97757337,3358.5,3357.8,0.405504]
[1762485285916,2.97763158,3358.4,3358.0,0.405504]
[1762485286283,0.4948,3358.6,3357.9,3.788]
[1762485286486,2.9778472,3358.2,3357.9,3.788]
[1762485286721,2.97794423,3358.1,3357.9,3.788]
[1762485288608,0.4928,3358.4,3357.9,3.788]
[1762485288609,0.002,3358.6,3358.0,0.4965]
[1762485288810,0.002,3358.6,3358.2,0.4965]
[1762485289042,0.002,3358.6,3358.3,0.727]
[1762485289213,2.97943493,3358.6,3358.3,0.727]
[1762485289610,0.002,3358.6,3358.5,0.4965]
[1762485289813,0.002,3358.6,3358.5,4.690004]
[1762485290014,0.002,3358.6,3358.5,2.27130344]
[1762485290212,0.002,3358.6,3358.5,5.24882316]
[1762485290644,0.002,3358.6,3358.5,6.50853516]
[1762485290844,0.002,3358.6,3358.5,6.62755997]
[1762485291412,0.002,3358.6,3358.5,12.2788113]
[1762485291748,0.002,3359.3,3358.9,4.64238114]
[1762485291944,0.002,3359.3,3358.9,6.95636061]
[1762485292132,0.002,3359.3,3358.9,7.38118896]
[1762485292449,0.002,3359.3,3358.9,7.52998896]
[1762485293569,0.003,3360.6,3360.5,2.97574765]
[1762485293852,0.003,3360.6,3360.5,5.08812642]
[1762485294048,0.003,3360.6,3360.5,5.54272642]
[1762485294216,0.003,3360.6,3360.5,2.71497877]
[1762485294412,0.003,3360.6,3360.5,1.57907877]
[1762485294642,0.003,3360.6,3360.5,1.133504]
[1762485295238,0.2424,3360.6,3360.5,0.405504]
[1762485295470,0.2424,3360.6,3360.5,1.133504]
[1762485295681,0.2424,3360.6,3360.5,0.405504]
[1762485295884,0.2424,3360.6,3360.5,1.132504]
[1762485296081,3.2180591,3360.6,3360.5,1.132504]
[1762485296261,1.08003602,3360.6,3359.9,0.1848]
[1762485296473,2.98116582,3360.0,3359.2,3.16168991]
[1762485296640,0.0049,3360.0,3359.4,1.259712]
[1762485296845,2.98110434,3360.0,3359.4,0.405504]
[1762485297070,0.003,3360.6,3359.9,0.4965]
[1762485297388,0.003,3360.6,3360.0,0.727]
[1762485297539,2.97583714,3360.4,3360.0,0.727]
[1762485297839,0.2394,3360.1,3360.0,0.727]
[1762485298309,0.4903,3360.5,3360.0,0.727]
[1762485298446,0.003,3360.6,3360.0,0.727]
[1762485298646,2.97575806,3360.5,3360.0,0.727]
[1762485298891,0.003,3360.6,3360.0,0.727]
[1762485299179,3.47151954,3360.6,3360.1,0.405504]
[1762485299479,2.97579672,3360.5,3360.1,0.405504]
[1762485299686,3.21541333,3360.2,3360.0,0.727]
[1762485300187,2.97601333,3360.2,3360.0,0.727]
[1762485300367,2.97595408,3360.3,3360.0,0.727]
[1762485300566,2.97595408,3360.3,3360.1,0.726]
[1762485300897,0.4928,3360.4,3360.1,0.726]
[1762485300898,0.003,3360.6,3360.1,0.726]
[1762485301100,2.97590826,3360.4,3360.1,0.726]
[1762485301388,0.85638799,3360.5,3360.1,0.726]
[1762485301389,3.83213673,3360.5,3360.1,0.726]
[1762485301579,2.97601333,3360.2,3360.1,0.726]
[1762485301771,0.4903,3360.4,3360.1,0.726]
[1762485302115,2.97628018,3359.9,3359.2,0.1848]
[1762485302425,2.97610569,3360.1,3359.3,1.131504]
[1762485302579,0.36358799,3360.5,3359.5,1.665216]
[1762485302906,2.97607406,3360.2,3359.5,1.665216]
[1762485303113,2.9761091,3360.1,3359.5,1.665216]
[1762485303624,2.9761091,3360.1,3359.5,0.405504]
[1762485303783,0.003,3360.6,3360.0,0.4965]
[1762485304129,2.97867407,3360.6,3360.1,1.131504]
[1762485304333,2.9758536,3360.4,3360.1,1.131504]
[1762485304479,2.97576737,3360.5,3360.1,1.131504]
[1762485304676,3.47148886,3360.6,3360.3,0.148]
[1762485304990,3.47148886,3360.6,3360.3,0.553504]
[1762485304991,2.9758362,3360.4,3360.3,0.553504]
[1762485305186,2.97623121,3360.0,3359.1,1.714312]
[1762485305385,2.97623121,3360.0,3359.3,1.985712]
[1762485305577,2.97625459,3360.0,3359.9,0.1488]
[1762485305779,2.97625459,3360.0,3359.1,0.4546]
[1762485305780,2.97677495,3359.4,3358.5,2.97748981]
[1762485305979,2.97681249,3359.3,3358.4,2.97760838]
[1762485306231,0.1847,3359.4,3358.5,0.726]
[1762485306394,2.97699813,3359.1,3358.5,0.726]
[1762485306593,2.9769246,3359.2,3358.5,3.70350928]
[1762485306928,2.97704308,3359.1,3358.5,1.43957935]
[1762485307406,0.2394,3358.6,3358.5,0.726]
[1762485307601,0.4241,3358.6,3358.5,0.726]
[1762485307908,2.97705964,3359.1,3358.5,1.2225]
[1762485308098,3.1614342,3359.4,3358.6,0.405504]
[1762485308298,0.1847,3359.4,3358.6,0.405504]
[1762485308487,0.6775,3359.4,3358.6,0.405504]
[1762485308691,0.002,3359.4,3358.8,0.405504]
[1762485308889,0.002,3359.4,3359.0,0.405504]
[1762485309113,2.9787259,3359.4,3359.0,0.405504]
[1762485309291,0.2394,3359.1,3358.9,0.725]
[1762485309488,0.4598,3359.0,3358.4,0.405504]
[1762485309704,0.4598,3359.0,3358.5,1.2347442]
[1762485309894,0.4598,3359.0,3358.5,3.70250065]
[1762485310095,0.4598,3359.0,3358.5,0.725]
[1762485310495,3.43396514,3358.9,3358.6,0.405504]
[1762485310897,3.43396514,3358.9,3358.5,0.725]
[1762485311228,2.97704459,3359.1,3358.6,0.405504]
[1762485311607,2.97708163,3359.0,3358.6,0.405504]
[1762485312004,2.97701929,3359.1,3358.6,0.405504]
[1762485312201,0.1912,3359.2,3358.6,0.405504]
[1762485312431,2.9772089,3358.9,3358.6,0.405504]
[1762485313356,0.6704,3359.2,3358.6,0.405504]
[1762485313834,3.6473797,3359.2,3358.6,0.43527831]
[1762485314038,0.6704,3359.2,3358.6,0.81929294]
[1762485314208,3.1681253,3359.2,3358.6,0.405504]
[1762485314407,0.4792,3359.1,3358.6,0.405504]
[1762485314631,3.45621976,3359.1,3358.6,0.405504]
[1762485315034,0.4792,3359.0,3358.6,0.405504]
[1762485315239,0.4792,3359.0,3358.1,0.001]
[1762485315240,2.97778571,3358.2,3358.1,0.001]
[1762485315441,3.22178571,3358.2,3358.1,0.724]
[1762485315600,3.70098571,3358.2,3358.1,0.001]
[1762485316103,3.70098571,3358.2,3358.1,0.1498]
[1762485316401,3.70098571,3358.2,3358.1,0.001]
[1762485319641,5.70917766,3358.2,3358.1,0.001]
[1762485319860,5.68369771,3358.2,3358.1,0.001]
[1762485320022,4.23785244,3357.8,3357.7,0.001]
[1762485320221,5.21375244,3357.8,3357.7,0.001]
[1762485320422,5.69065244,3357.8,3357.7,0.001]
[1762485321658,2.97840655,3357.5,3356.8,0.001]
[1762485321869,2.98320655,3357.5,3356.8,0.001]
[1762485322158,3.46240655,3357.5,3356.8,0.001]
[1762485323355,4.18540655,3357.5,3356.8,0.001]
[1762485326090,5.44511855,3357.5,3356.8,0.001]
[1762485326591,5.44511855,3357.5,3357.0,0.001]
[1762485327291,2.98320655,3357.5,3357.0,0.001]
[1762485327687,2.97840655,3357.5,3357.1,0.1689]
[1762485328256,3.7336865,3357.5,3357.0,0.001]
[1762485329158,3.7336865,3357.5,3357.4,3.789]
[1762485329358,3.70820655,3357.5,3357.4,3.789]
[1762485329654,3.70820655,3357.5,3357.4,0.001]
[1762485330797,3.23130655,3357.5,3357.4,0.001]
[1762485331091,0.1488,3357.5,3357.4,0.4534]
[1762485331293,0.002,3357.8,3357.4,4.3902]
[1762485331490,0.002,3357.8,3357.4,4.8775]
[1762485331701,2.9783796,3357.6,3357.4,4.3902]
[1762485331906,2.97824163,3357.7,3357.4,4.3902]
[1762485332210,2.97840655,3357.5,3357.4,4.3902]
[1762485332710,2.98021155,3357.8,3357.4,4.3902]
[1762485332897,2.97840655,3357.5,3357.4,4.3902]
[1762485333301,2.97840655,3357.5,3357.4,3.9378]
[1762485334112,2.97838207,3357.6,3357.4,4.3902]
[1762485334610,2.97840655,3357.5,3357.4,4.3902]
[1762485336116,2.97840655,3357.5,3357.4,3.9378]
[1762485336625,3.70100683,3358.0,3357.4,3.9378]
[1762485336626,0.002,3360.1,3359.1,0.6452]
[1762485336908,0.002,3360.1,3359.7,0.857904]
[1762485337114,0.002,3360.1,3359.7,1.594904]
[1762485337315,0.002,3360.1,3359.7,3.341916]
[1762485337502,0.002,3360.1,3359.7,6.31837223]
[1762485337693,0.002,3360.1,3359.7,6.95020945]
[1762485338014,0.002,3360.1,3360.0,3.38169447]
[1762485338181,0.003,3360.6,3360.5,4.64096365]
[1762485338382,0.0966,3362.1,3360.9,0.405504]
[1762485338677,0.0966,3362.1,3361.0,5.59272096]
[1762485338897,0.0966,3362.4,3361.4,2.97492099]
[1762485339098,0.006,3362.6,3361.8,1.077304]
[1762485339475,0.006,3362.6,3361.8,1.548704]
[1762485339693,0.006,3362.6,3361.4,0.4714]
[1762485339992,2.97432224,3362.2,3361.5,1.142504]
[1762485340191,2.97432224,3362.2,3361.5,0.876904]
[1762485340403,2.97432224,3362.2,3361.6,0.737]
[1762485340605,2.97416969,3362.3,3361.6,0.737]
[1762485340825,0.006,3362.6,3361.6,0.73342368]
[1762485340826,2.97450222,3362.0,3361.6,0.73342368]
[1762485341221,2.97953663,3361.9,3361.6,0.73342368]
[1762485341415,0.005,3361.9,3361.6,0.73342368]
[1762485341717,2.97951084,3361.9,3361.6,0.73342368]
[1762485341909,0.005,3361.9,3361.6,0.73342368]
[1762485343600,2.98151044,3361.9,3361.6,0.73342368]
[1762485343930,2.98151044,3361.9,3361.4,0.191]
[1762485343931,0.007,3361.9,3361.4,0.191]
[1762485344105,0.007,3361.9,3360.8,0.4744]
[1762485344306,2.97492855,3361.5,3360.9,0.735]
[1762485344521,2.97478261,3361.6,3361.0,0.735]
[1762485344831,2.97501748,3361.4,3361.0,0.735]
[1762485345046,0.29747826,3361.5,3360.5,0.191]
[1762485345196,2.9753796,3361.0,3360.6,0.735]
[1762485345837,0.49187826,3361.5,3360.6,0.735]
[1762485346036,0.007,3361.9,3361.4,0.4799]
[1762485346200,2.97470187,3361.7,3361.5,0.734]
[1762485346399,2.97470187,3361.7,3361.5,0.735]
[1762485346600,2.97470187,3361.7,3361.6,0.148]
[1762485347019,0.007,3361.9,3361.6,0.6279]
[1762485347243,0.007,3361.9,3361.6,1.1023]
[1762485347430,0.007,3361.9,3361.6,0.9543]
[1762485347630,0.007,3361.9,3361.8,0.148]
[1762485348516,2.98150846,3361.9,3361.8,0.148]
[1762485349119,0.007,3361.9,3361.8,0.148]
[1762485349317,2.98150846,3361.9,3361.8,0.148]
[1762485349839,0.007,3361.9,3361.8,0.148]
[1762485350147,2.98150846,3361.9,3361.8,0.148]
[1762485351019,0.007,3361.9,3361.8,0.148]
[1762485352319,0.007,3361.9,3361.8,0.91278517]
[1762485352520,0.007,3361.9,3361.8,0.553504]
[1762485353830,3.17590846,3361.9,3361.8,0.148]
[1762485355854,2.98150846,3361.9,3361.8,0.148]
[1762485356459,2.98150846,3361.9,3361.8,0.6279]
[1762485357236,0.007,3361.9,3361.8,0.6279]
[1762485357564,0.007,3361.9,3361.8,1.1023]
[1762485357864,0.007,3361.9,3361.8,4.8923]
[1762485358039,2.98150846,3361.9,3361.8,4.4179]
[1762485358560,3.17590846,3361.9,3361.8,3.938]
[1762485360142,2.97533609,3361.0,3360.7,3.79]
[1762485360325,0.3888,3361.5,3360.2,0.1965]
[1762485360532,2.9757261,3360.6,3360.3,0.731]
[1762485360745,2.9757261,3360.6,3360.5,0.148]
[1762485360947,2.97503941,3361.3,3361.2,0.001]
[1762485361182,3.16943941,3361.3,3361.2,0.001]
[1762485362465,3.36383941,3361.3,3361.2,0.001]
[1762485362792,4.62355141,3361.3,3361.2,0.001]
[1762485362990,3.13490496,3361.0,3359.5,0.731]
[1762485363294,2.97654482,3359.6,3359.5,0.731]
[1762485363657,2.97654482,3359.6,3359.5,1.3597]
[1762485364057,2.97654482,3359.6,3359.5,1.765204]
[1762485364877,2.97648573,3359.7,3359.5,1.765204]
[1762485365086,0.148,3360.5,3359.8,0.4799]
[1762485365391,2.97601333,3360.2,3360.1,0.4799]
[1762485365553,0.34157896,3360.8,3360.1,0.4799]
[1762485365753,2.97577537,3360.5,3360.1,1.1508]
[1762485365954,0.34157896,3360.8,3360.2,0.4744]
[1762485366155,2.97558359,3360.7,3360.4,0.4799]
[1762485366595,0.731,3361.1,3360.4,0.4744]
[1762485367054,2.97530496,3361.0,3360.3,0.73]
[1762485367255,2.9758362,3360.4,3360.3,0.73]
[1762485370101,3.7053946,3360.9,3359.6,0.4744]
[1762485370303,2.97689926,3359.2,3358.4,2.97757862]
[1762485370490,2.9771398,3359.0,3358.7,0.1965]
[1762485370689,3.70554302,3359.7,3358.8,0.4945]
[1762485370911,2.97681292,3359.3,3358.8,0.4945]
[1762485371080,2.97691537,3359.2,3358.8,1.11792531]
[1762485371279,2.97714337,3359.0,3358.8,0.62342531]
[1762485371499,2.97714337,3359.0,3358.7,0.73]
[1762485371680,2.97699631,3359.1,3358.7,0.73]
[1762485372079,0.729,3359.7,3358.7,0.73]
[1762485372314,2.97494938,3361.5,3359.6,0.6568]
[1762485372516,0.1944,3361.1,3359.7,1.605304]
[1762485372813,0.1944,3361.1,3359.8,3.65009097]
[1762485372814,2.97578084,3360.5,3359.8,3.65009097]
[1762485373013,0.1944,3361.1,3359.8,0.6737304]
[1762485373014,2.97594346,3360.3,3359.8,0.6737304]
[1762485373314,2.97571907,3360.6,3360.2,0.6568]
[1762485373542,2.9757131,3360.6,3360.2,0.6568]
[1762485373819,2.9757131,3360.6,3360.2,1.1513]
[1762485374117,0.0928,3361.2,3360.5,0.4698]
[1762485374317,0.2014,3361.9,3360.7,0.4698]
[1762485374490,2.97523327,3361.1,3360.8,0.73]
[1762485374695,2.97512918,3361.2,3360.8,0.73]
[1762485374895,2.97506379,3361.3,3360.8,1.2245]
[1762485375281,0.148,3361.7,3361.1,0.148]
[1762485375282,2.97512793,3361.2,3361.1,0.148]
[1762485376520,0.148,3361.7,3361.1,0.6178]
[1762485376721,0.007,3361.9,3361.6,0.6178]
[1762485376921,0.007,3361.9,3361.8,0.875304]
[1762485377227,0.007,3361.9,3361.8,4.67060603]
[1762485377443,0.007,3361.9,3361.8,5.93031803]
[1762485377620,0.007,3361.9,3361.8,2.95572109]
[1762485377824,0.007,3361.9,3361.8,5.93031803]
[1762485378021,0.007,3361.9,3361.8,1.023304]
[1762485378221,0.007,3361.9,3361.8,0.729]
[1762485378425,2.98151273,3361.9,3361.8,0.729]
[1762485379335,2.97460375,3361.8,3361.3,0.405504]
[1762485379643,2.97460375,3361.8,3361.7,0.729]
[1762485380116,2.97460375,3361.8,3360.9,0.4945]
[1762485380117,0.1944,3361.8,3360.9,0.4945]
[1762485380317,0.1944,3361.8,3361.0,1.134504]
[1762485380615,0.007,3361.9,3361.2,0.405504]
[1762485380816,2.98151549,3361.9,3361.3,0.02975039]
[1762485381017,2.98151549,3361.9,3361.4,0.4945]
[1762485381212,0.007,3361.9,3361.8,0.4698]
[1762485381619,0.007,3361.9,3361.8,0.9643]
[1762485381944,2.98150846,3361.9,3361.8,0.9643]
[1762485382143,0.007,3361.9,3361.5,0.729]
[1762485382343,2.97477391,3361.6,3361.1,0.4945]
[1762485382512,2.9815324,3361.9,3361.4,0.729]
[1762485382713,2.97464121,3361.8,3361.5,0.4698]
[1762485382932,2.97477391,3361.6,3361.5,0.4698]
[1762485383141,2.97477391,3361.6,3361.4,0.729]
[1762485383443,2.97470952,3361.7,3361.4,1.2235]
[1762485383623,2.97486241,3361.5,3361.4,0.729]
[1762485383825,0.007,3361.9,3361.6,0.4698]
[1762485384143,0.007,3361.9,3361.8,0.4698]
[1762485384144,2.98156861,3361.9,3361.8,0.4698]
[1762485384321,2.98150846,3361.9,3361.8,0.4698]
[1762485384524,0.007,3361.9,3361.8,1.369804]
[1762485385343,0.007,3361.9,3361.8,1.80426098]
[1762485386112,0.007,3361.9,3361.8,6.03856992]
[1762485386321,0.007,3361.9,3361.8,6.76656992]
[1762485388152,0.007,3361.9,3361.8,6.91456992]
[1762485388350,0.002,3362.3,3361.8,6.91456992]
[1762485388351,0.002,3362.3,3362.2,4.63945905]
[1762485388655,0.002,3362.3,3362.2,6.17125905]
[1762485388830,0.008,3362.6,3362.5,3.37948169]
[1762485389028,0.008,3362.6,3362.5,3.84928169]
[1762485389228,0.008,3362.6,3362.5,11.057226]
[1762485389427,0.008,3362.6,3362.5,12.69975657]
[1762485389628,0.003,3362.7,3362.6,4.63910525]
[1762485389854,0.003,3362.7,3362.6,1.369804]
[1762485390053,0.003,3362.7,3362.2,0.6815]
[1762485390054,2.97680543,3362.7,3362.2,0.6815]
[1762485390220,0.003,3362.7,3362.2,0.6815]
[1762485390616,2.97400449,3362.5,3362.3,0.728]
[1762485390815,2.97680472,3362.7,3361.3,5.45373231]
[1762485390816,2.97415459,3362.3,3361.8,0.6815]
[1762485391032,2.97415459,3362.3,3361.9,0.728]
[1762485391237,2.97415459,3362.3,3361.9,1.66092719]
[1762485391432,2.97415459,3362.3,3362.0,0.4945]
[1762485391647,2.97415459,3362.3,3362.0,0.728]
[1762485392028,2.97424305,3362.2,3362.1,1.133504]
[1762485392231,0.003,3362.7,3360.8,3.57129141]
[1762485392232,0.1944,3362.6,3360.8,3.57129141]
[1762485392434,2.97415459,3362.3,3360.6,0.4945]
[1762485392634,0.1944,3362.6,3360.7,0.728]
[1762485392837,2.97509861,3361.3,3360.6,1.754212]
[1762485393034,2.97495963,3361.4,3360.8,1.259712]
[1762485393260,0.1944,3362.4,3360.9,0.405504]
[1762485393447,2.97514853,3361.2,3360.7,1.69549428]
[1762485393641,2.97503796,3361.4,3360.8,1.259712]
[1762485393839,2.97503796,3361.4,3360.8,1.754212]
[1762485394151,2.97512074,3361.3,3360.8,0.4945]
[1762485394348,2.97519782,3361.2,3360.7,0.728]
[1762485394551,2.97437646,3362.1,3360.8,0.405504]
[1762485394552,2.97468542,3361.7,3360.8,0.405504]
[1762485394728,2.97497918,3361.4,3360.7,0.728]
[1762485394926,2.97495353,3361.4,3360.7,1.2225]
[1762485395132,2.97466007,3361.8,3361.3,0.6568]
[1762485395329,1.264712,3362.9,3361.4,0.728]
[1762485395559,2.97439771,3362.1,3361.5,0.405504]
[1762485395735,0.005,3362.9,3361.7,0.405504]
[1762485395925,2.97422581,3362.3,3361.8,0.728]
[1762485396363,2.97410711,3362.4,3362.0,0.405504]
[1762485396668,0.002,3362.5,3362.0,0.43524819]
[1762485396964,0.002,3362.5,3362.3,0.187]
[1762485397168,0.002,3362.5,3362.4,0.728]
[1762485397461,0.0636,3363.0,3362.5,0.405504]
[1762485397662,0.002,3363.2,3362.6,0.02973889]
[1762485397866,2.97647221,3363.1,3362.6,0.21421318]
[1762485398056,0.003,3363.1,3362.7,0.4839]
[1762485398253,0.003,3363.1,3362.8,0.728]
[1762485398646,0.003,3363.1,3362.8,1.2119]
[1762485398964,0.003,3363.1,3363.0,0.4965]
[1762485399179,0.003,3363.1,3363.0,1.93871762]
[1762485399467,0.003,3363.1,3363.0,6.17196515]
[1762485399685,0.003,3363.1,3363.0,6.31996515]
[1762485399908,0.002,3363.2,3363.1,3.37895111]
[1762485400115,0.002,3363.2,3363.1,4.55055111]
[1762485400433,0.005,3364.9,3364.2,0.405504]
[1762485400723,0.005,3364.9,3364.8,0.895504]
[1762485400885,0.005,3364.9,3364.8,1.628504]
[1762485401088,0.005,3364.9,3364.8,1.9173256]
[1762485401290,0.005,3364.9,3364.8,1.1843256]
[1762485401509,0.005,3364.9,3364.8,1.628504]
[1762485401694,0.005,3364.9,3364.8,2.093704]
[1762485402419,0.005,3364.9,3364.8,2.092704]
[1762485402603,0.005,3364.9,3364.8,1.360704]
[1762485402811,2.97041382,3366.6,3364.9,0.405504]
[1762485402980,0.1614,3366.4,3365.1,0.405504]
[1762485403309,0.1656,3366.9,3365.3,0.405504]
[1762485403512,3.0342959,3366.3,3365.3,0.405504]
[1762485403728,0.1656,3366.9,3365.8,0.888924]
[1762485403729,0.0636,3366.5,3365.8,0.888924]
[1762485404032,3.03406901,3366.5,3365.8,1.141504]
[1762485404192,0.0636,3366.5,3365.8,0.405504]
[1762485404397,2.97055305,3366.4,3365.8,1.141504]
[1762485405006,3.03405653,3366.5,3365.8,1.141504]
[1762485405206,0.0636,3366.5,3365.8,2.096704]
[1762485405534,0.0636,3366.5,3365.8,5.57455017]
[1762485405732,2.97061146,3366.4,3365.8,2.13828832]
[1762485405901,3.14399737,3365.9,3365.1,0.405504]
[1762485406105,0.173,3365.9,3365.3,0.405504]
[1762485406436,0.005,3365.9,3365.5,0.405504]
[1762485406731,0.005,3365.9,3365.6,0.737]
[1762485406935,2.97106185,3365.8,3365.7,0.737]
[1762485407136,2.97600018,3365.9,3365.7,0.737]
[1762485407368,0.005,3365.9,3365.7,0.737]
[1762485407552,0.005,3365.9,3365.8,0.405504]
[1762485408829,0.005,3365.9,3364.9,4.69674942]
[1762485408830,3.31203228,3365.9,3364.9,4.69674942]
[1762485409038,0.168,3365.8,3365.0,1.144504]
[1762485409219,0.168,3365.8,3365.0,0.405504]
[1762485409410,2.97139747,3365.5,3365.1,0.738]
[1762485409611,2.97143758,3365.4,3365.1,0.738]
[1762485410160,2.9711505,3365.7,3365.1,0.738]
[1762485410311,2.97138772,3365.5,3365.2,0.405504]
[1762485410513,2.97150328,3365.3,3365.2,0.405504]
[1762485410704,2.97132669,3365.5,3365.4,0.148]
[1762485411008,2.97150328,3365.3,3365.2,0.148]
[1762485411210,2.97150328,3365.3,3365.2,0.738]
[1762485411445,2.97150328,3365.3,3365.2,0.886]
[1762485411626,3.13950328,3365.3,3365.2,0.148]
[1762485411835,0.168,3365.3,3365.0,0.738]
[1762485412071,2.9716037,3365.2,3365.0,0.148]
[1762485412224,3.13967989,3365.1,3365.0,0.148]
[1762485412746,0.336,3365.1,3364.7,0.738]
[1762485412949,2.97194484,3364.8,3364.7,0.738]
[1762485413315,2.9717682,3365.0,3364.7,0.738]
[1762485413316,2.97185127,3365.0,3364.7,0.738]
[1762485413520,2.9718826,3364.9,3364.7,0.886]
[1762485413730,2.9718826,3364.9,3364.7,0.738]
[1762485413928,2.9718826,3364.9,3364.8,0.148]
[1762485414359,3.2441826,3364.9,3364.8,0.148]
[1762485415072,2.97168684,3365.1,3364.7,0.738]
[1762485415364,2.97191251,3364.9,3364.8,0.738]
[1762485415955,2.97196878,3364.8,3364.2,2.130416]
[1762485416262,0.002,3365.3,3364.4,0.405504]
[1762485416263,2.97204066,3364.7,3364.4,0.405504]
[1762485416462,2.9721215,3364.6,3364.5,0.737]
[1762485416665,2.97233889,3364.4,3363.7,0.1951]
[1762485416870,0.168,3364.6,3363.8,0.737]
[1762485417163,2.972328,3364.4,3363.8,2.461912]
[1762485417465,2.972328,3364.4,3363.9,0.405504]
[1762485417766,0.1043,3364.7,3363.9,1.53509521]
[1762485417965,0.1043,3364.7,3363.9,1.259712]
[1762485418281,2.9723989,3364.3,3364.0,0.737]
[1762485418575,2.97233129,3364.4,3364.0,0.737]
[1762485418988,2.97239195,3364.3,3364.0,0.737]
[1762485419365,0.1043,3364.7,3364.0,0.737]
[1762485419780,2.97262516,3364.1,3363.7,0.1951]
[1762485419980,2.97262516,3364.1,3363.9,0.405504]
[1762485420186,0.59671981,3364.7,3363.9,0.405504]
[1762485420385,2.97235633,3364.4,3363.9,0.405504]
[1762485420593,2.97217178,3364.6,3363.9,3.37817003]
[1762485420807,0.739,3365.3,3363.9,3.37817003]
[1762485420808,2.9722221,3364.5,3364.0,0.49492651]
[1762485421001,2.9723232,3364.4,3364.1,0.1951]
[1762485421304,2.97215495,3364.6,3364.1,0.1951]
[1762485421483,2.97221133,3364.5,3364.1,0.1951]
[1762485421680,0.1043,3364.9,3364.2,0.736]
[1762485421886,2.97219519,3364.6,3364.2,0.736]
[1762485422209,2.97221786,3364.5,3364.2,0.736]
[1762485422618,2.97238652,3364.3,3364.2,0.736]
[1762485422775,2.9719106,3364.9,3364.5,0.405504]
[1762485423117,0.002,3365.3,3364.6,0.735]
[1762485423335,0.002,3365.3,3364.7,0.43522433]
[1762485423476,0.002,3365.3,3365.2,0.895504]
[1762485423675,0.002,3365.3,3365.2,4.60209558]
[1762485424000,0.002,3365.3,3365.2,5.06729558]
[1762485424198,0.002,3365.3,3365.2,6.32700758]
[1762485425011,0.002,3365.3,3365.2,6.47500758]
[1762485425210,0.002,3365.3,3365.2,5.01046954]
[1762485425382,0.002,3365.3,3365.2,2.548216]
[1762485425816,0.002,3365.3,3365.2,1.813216]
[1762485426108,0.002,3365.3,3365.2,2.548216]
[1762485426519,0.002,3365.3,3365.2,3.038216]
[1762485426720,0.002,3365.3,3365.2,6.00980758]
[1762485426919,0.002,3365.3,3365.2,7.78753913]
[1762485427122,0.17,3365.3,3363.9,0.4652]
[1762485427323,2.97195499,3364.8,3364.0,2.97263133]
[1762485427620,0.168,3365.1,3364.2,0.735]